[Event "Titled Tuesday Blitz June 27 Late 2023"]
[White "le-castor-faineant"]
[Black "Ladron De Guevara Pinto, Paolo"]
[BlackFideId "2290847"]
[WhiteElo "2177"]
[BlackElo "2568"]
[Result "1/2-1/2"]
[Round "1"]
[TimeControl "180+2"]
[Date "2023.06.27"]
[WhiteClock "0:00:09"]
[BlackClock "0:00:12"]
[Board "164"]

1. e4 {[%clk 0:02:58]}  e6 {[%clk 0:02:54]} 2. d4 {[%clk 0:02:58]}  d5 {[%clk 0:02:55]} 3. Nc3 {[%clk 0:02:57]}  dxe4 {[%clk 0:02:54]} 4. Nxe4 {[%clk 0:02:58]}  Nd7 {[%clk 0:02:54]} 5. Nf3 {[%clk 0:02:57]}  Ngf6 {[%clk 0:02:55]} 6. Bd3 {[%clk 0:02:57]}  c5 {[%clk 0:02:52]} 7. Nxf6+ {[%clk 0:02:57]}  Nxf6 {[%clk 0:02:52]} 8. Be3 {[%clk 0:02:56]}  cxd4 {[%clk 0:02:50]} 9. Nxd4 {[%clk 0:02:54]}  Be7 {[%clk 0:02:46]} 10. Qe2 {[%clk 0:02:50]}  Qa5+ {[%clk 0:02:39]} 11. Bd2 {[%clk 0:02:49]}  Qb6 {[%clk 0:02:39]} 12. Nb3 {[%clk 0:02:46]}  O-O {[%clk 0:02:37]} 13. O-O {[%clk 0:02:45]}  Qc7 {[%clk 0:02:27]} 14. Bg5 {[%clk 0:02:30]}  h6 {[%clk 0:02:18]} 15. Bh4 {[%clk 0:02:29]}  Bd7 {[%clk 0:02:13]} 16. Rad1 {[%clk 0:02:15]}  Rad8 {[%clk 0:02:12]} 17. Nd2 {[%clk 0:02:02]}  Bc6 {[%clk 0:02:07]} 18. Ne4 {[%clk 0:01:55]}  Nxe4 {[%clk 0:02:04]} 19. Bxe7 {[%clk 0:01:56]}  Nc3 {[%clk 0:01:47]} 20. Qe1 {[%clk 0:01:33]}  Qxe7 {[%clk 0:01:45]} 21. Qxc3 {[%clk 0:01:32]}  Qg5 {[%clk 0:01:43]} 22. f3 {[%clk 0:01:28]}  Rd7 {[%clk 0:01:34]} 23. Be2 {[%clk 0:01:24]}  Rfd8 {[%clk 0:01:33]} 24. Rd3 {[%clk 0:01:10]}  Rxd3 {[%clk 0:01:27]} 25. Bxd3 {[%clk 0:01:11]}  g6 {[%clk 0:01:16]} 26. Re1 {[%clk 0:01:11]}  h5 {[%clk 0:01:13]} 27. Qe5 {[%clk 0:01:10]}  Qxe5 {[%clk 0:01:11]} 28. Rxe5 {[%clk 0:01:11]}  Bd5 {[%clk 0:01:11]} 29. a3 {[%clk 0:01:09]}  Kg7 {[%clk 0:01:11]} 30. Re3 {[%clk 0:01:05]}  Kf6 {[%clk 0:01:10]} 31. Be4 {[%clk 0:01:05]}  Bxe4 {[%clk 0:01:10]} 32. Rxe4 {[%clk 0:01:03]}  Rd2 {[%clk 0:01:08]} 33. Rc4 {[%clk 0:01:01]}  b5 {[%clk 0:01:07]} 34. Rc5 {[%clk 0:01:00]}  a6 {[%clk 0:01:08]} 35. Rc6 {[%clk 0:00:57]}  h4 {[%clk 0:01:01]} 36. h3 {[%clk 0:00:55]}  Ke5 {[%clk 0:00:59]} 37. b3 {[%clk 0:00:53]}  Kf4 {[%clk 0:00:56]} 38. Kh2 {[%clk 0:00:53]}  Ke3 {[%clk 0:00:55]} 39. c4 {[%clk 0:00:51]}  bxc4 {[%clk 0:00:50]} 40. Rxc4 {[%clk 0:00:44]}  Rd3 {[%clk 0:00:46]} 41. Rxh4 {[%clk 0:00:38]}  Rxb3 {[%clk 0:00:46]} 42. Ra4 {[%clk 0:00:38]}  Rb6 {[%clk 0:00:46]} 43. Kg3 {[%clk 0:00:37]}  f6 {[%clk 0:00:47]} 44. h4 {[%clk 0:00:36]}  e5 {[%clk 0:00:47]} 45. Kg4 {[%clk 0:00:35]}  Rb2 {[%clk 0:00:47]} 46. g3 {[%clk 0:00:34]}  f5+ {[%clk 0:00:45]} 47. Kg5 {[%clk 0:00:34]}  Rg2 {[%clk 0:00:43]} 48. Kxg6 {[%clk 0:00:33]}  f4 {[%clk 0:00:44]} 49. Re4+ {[%clk 0:00:31]}  Kxf3 {[%clk 0:00:43]} 50. Rxe5 {[%clk 0:00:32]}  Rxg3+ {[%clk 0:00:43]} 51. Rg5 {[%clk 0:00:21]}  Ke2 {[%clk 0:00:31]} 52. h5 {[%clk 0:00:16]}  Rh3 {[%clk 0:00:28]} 53. Rf5 {[%clk 0:00:16]}  f3 {[%clk 0:00:28]} 54. h6 {[%clk 0:00:16]}  f2 {[%clk 0:00:28]} 55. Re5+ {[%clk 0:00:14]}  Kd2 {[%clk 0:00:28]} 56. Rf5 {[%clk 0:00:14]}  Ke3 {[%clk 0:00:20]} 57. h7 {[%clk 0:00:13]}  Ke2 {[%clk 0:00:16]} 58. Re5+ {[%clk 0:00:13]}  Kd2 {[%clk 0:00:16]} 59. Rf5 {[%clk 0:00:12]}  Ke1 {[%clk 0:00:16]} 60. Re5+ {[%clk 0:00:12]}  Kd2 {[%clk 0:00:17]} 61. Rf5 {[%clk 0:00:12]}  Ke2 {[%clk 0:00:17]} 62. Re5+ {[%clk 0:00:12]}  Re3 {[%clk 0:00:17]} 63. Rxe3+ {[%clk 0:00:11]}  Kxe3 {[%clk 0:00:18]} 64. h8=Q {[%clk 0:00:11]}  f1=Q {[%clk 0:00:19]} 65. Qc3+ {[%clk 0:00:11]}  Ke4 {[%clk 0:00:20]} 66. Qc6+ {[%clk 0:00:10]}  Kd4 {[%clk 0:00:18]} 67. Qb6+ {[%clk 0:00:09]}  Kc3 {[%clk 0:00:17]} 68. Qb4+ {[%clk 0:00:09]}  Kc2 {[%clk 0:00:18]} 69. Qa4+ {[%clk 0:00:09]}  Kb2 {[%clk 0:00:16]} 70. Qb4+ {[%clk 0:00:10]}  Ka2 {[%clk 0:00:17]} 71. a4 {[%clk 0:00:08]}  Qd3+ {[%clk 0:00:14]} 72. Kf6 {[%clk 0:00:07]}  Qb3 {[%clk 0:00:12]} 73. Qa5 {[%clk 0:00:03]}  Qb7 {[%clk 0:00:10]} 74. Ke5 {[%clk 0:00:02]}  Ka3 {[%clk 0:00:10]} 75. Kd6 {[%clk 0:00:02]}  Qb4+ {[%clk 0:00:10]} 76. Qxb4+ {[%clk 0:00:02]}  Kxb4 {[%clk 0:00:11]} 77. a5 {[%clk 0:00:02]}  Kxa5 {[%clk 0:00:10]} 78. Kc5 {[%clk 0:00:03]}  Ka4 {[%clk 0:00:10]} 79. Kc4 {[%clk 0:00:03]}  Ka3 {[%clk 0:00:11]} 80. Kc3 {[%clk 0:00:04]}  Ka2 {[%clk 0:00:11]} 81. Kc2 {[%clk 0:00:05]}  a5 {[%clk 0:00:11]} 82. Kc1 {[%clk 0:00:06]}  a4 {[%clk 0:00:10]} 83. Kc2 {[%clk 0:00:07]}  a3 {[%clk 0:00:09]} 84. Kc1 {[%clk 0:00:07]}  Ka1 {[%clk 0:00:09]} 85. Kc2 {[%clk 0:00:08]}  Ka2 {[%clk 0:00:10]} 86. Kc1 {[%clk 0:00:08]}  Kb3 {[%clk 0:00:10]} 87. Kb1 {[%clk 0:00:08]}  a2+ {[%clk 0:00:11]} 88. Ka1 {[%clk 0:00:09]}  Ka3 {[%clk 0:00:12]} 1/2-1/2


[Site "https://www.chess.com"]

[Event "Titled Tuesday Blitz June 27 Late 2023"]
[White "Ozates, Tuna"]
[Black "campochess"]
[WhiteFideId "6354521"]
[WhiteElo "2564"]
[BlackElo "2160"]
[Result "1-0"]
[Round "1"]
[TimeControl "180+2"]
[Date "2023.06.27"]
[WhiteClock "0:01:46"]
[BlackClock "0:01:36"]
[Board "167"]

1. e4 {[%clk 0:02:58]}  c5 {[%clk 0:02:55]} 2. Nf3 {[%clk 0:02:57]}  Nc6 {[%clk 0:02:55]} 3. Bb5 {[%clk 0:02:47]}  e6 {[%clk 0:02:54]} 4. O-O {[%clk 0:02:40]}  Nge7 {[%clk 0:02:54]} 5. c3 {[%clk 0:02:37]}  a6 {[%clk 0:02:54]} 6. Ba4 {[%clk 0:02:36]}  b5 {[%clk 0:02:51]} 7. Bc2 {[%clk 0:02:35]}  d5 {[%clk 0:02:51]} 8. d3 {[%clk 0:02:35]}  Ng6 {[%clk 0:02:46]} 9. Re1 {[%clk 0:02:35]}  Be7 {[%clk 0:02:45]} 10. Nbd2 {[%clk 0:02:30]}  O-O {[%clk 0:02:43]} 11. g3 {[%clk 0:02:28]}  Bb7 {[%clk 0:02:43]} 12. h4 {[%clk 0:02:26]}  Nh8 {[%clk 0:02:39]} 13. e5 {[%clk 0:02:20]}  Re8 {[%clk 0:02:26]} 14. d4 {[%clk 0:02:19]}  f6 {[%clk 0:02:25]} 15. exf6 {[%clk 0:02:15]}  gxf6 {[%clk 0:02:25]} 16. Rxe6 {[%clk 0:02:13]}  Qd7 {[%clk 0:02:20]} 17. Bf5 {[%clk 0:02:08]}  Qc7 {[%clk 0:02:17]} 18. Ne5 {[%clk 0:01:54]}  Nd8 {[%clk 0:02:15]} 19. Qg4+ {[%clk 0:01:53]}  Kf8 {[%clk 0:01:59]} 20. Ne4 {[%clk 0:01:47]}  Nxe6 {[%clk 0:01:36]} 21. Bh6+ {[%clk 0:01:46]} 1-0


[Site "https://www.chess.com"]

[Event "Titled Tuesday Blitz June 27 Late 2023"]
[White "Oliveira, Tiago Batista"]
[Black "Ortega Amarelle, Mariano"]
[WhiteFideId "2108291"]
[BlackFideId "3504301"]
[WhiteElo "2150"]
[BlackElo "2562"]
[Result "1-0"]
[Round "1"]
[TimeControl "180+2"]
[Date "2023.06.27"]
[WhiteClock "0:00:14"]
[BlackClock "0:00:13"]
[Board "168"]

1. d4 {[%clk 0:02:58]}  c5 {[%clk 0:02:58]} 2. d5 {[%clk 0:02:57]}  e6 {[%clk 0:02:58]} 3. c4 {[%clk 0:02:56]}  exd5 {[%clk 0:02:59]} 4. cxd5 {[%clk 0:02:57]}  d6 {[%clk 0:02:59]} 5. Nc3 {[%clk 0:02:56]}  Nf6 {[%clk 0:03:00]} 6. g3 {[%clk 0:02:55]}  g6 {[%clk 0:03:00]} 7. Bg2 {[%clk 0:02:55]}  Bg7 {[%clk 0:03:00]} 8. Nf3 {[%clk 0:02:56]}  O-O {[%clk 0:03:01]} 9. O-O {[%clk 0:02:56]}  a6 {[%clk 0:03:00]} 10. a4 {[%clk 0:02:55]}  Re8 {[%clk 0:02:57]} 11. Nd2 {[%clk 0:02:51]}  Nbd7 {[%clk 0:02:55]} 12. Nc4 {[%clk 0:02:51]}  Ne5 {[%clk 0:02:54]} 13. Nxe5 {[%clk 0:02:51]}  Rxe5 {[%clk 0:02:54]} 14. Bf4 {[%clk 0:02:51]}  Re7 {[%clk 0:02:52]} 15. e4 {[%clk 0:02:51]}  Ne8 {[%clk 0:02:44]} 16. Bg5 {[%clk 0:02:35]}  f6 {[%clk 0:02:42]} 17. Be3 {[%clk 0:02:33]}  b6 {[%clk 0:02:37]} 18. Qd2 {[%clk 0:02:31]}  Rb8 {[%clk 0:02:35]} 19. f4 {[%clk 0:02:04]}  b5 {[%clk 0:02:29]} 20. axb5 {[%clk 0:02:01]}  axb5 {[%clk 0:02:30]} 21. Rfc1 {[%clk 0:01:47]}  Nc7 {[%clk 0:01:53]} 22. Ra7 {[%clk 0:01:31]}  b4 {[%clk 0:01:52]} 23. Ne2 {[%clk 0:01:31]}  Nb5 {[%clk 0:01:49]} 24. Rxe7 {[%clk 0:01:29]}  Qxe7 {[%clk 0:01:50]} 25. Ra1 {[%clk 0:01:11]}  Qb7 {[%clk 0:01:34]} 26. h3 {[%clk 0:00:30]}  Ra8 {[%clk 0:01:33]} 27. Qc1 {[%clk 0:00:28]}  Ra6 {[%clk 0:01:22]} 28. g4 {[%clk 0:00:21]}  Qa7 {[%clk 0:01:17]} 29. Rxa6 {[%clk 0:00:20]}  Qxa6 {[%clk 0:01:18]} 30. Ng3 {[%clk 0:00:19]}  Nc7 {[%clk 0:00:28]} 31. Bf1 {[%clk 0:00:19]}  Qa5 {[%clk 0:00:28]} 32. Be2 {[%clk 0:00:19]}  Ba6 {[%clk 0:00:29]} 33. h4 {[%clk 0:00:19]}  Bxe2 {[%clk 0:00:27]} 34. Nxe2 {[%clk 0:00:19]}  f5 {[%clk 0:00:25]} 35. e5 {[%clk 0:00:17]}  Nxd5 {[%clk 0:00:24]} 36. exd6 {[%clk 0:00:16]}  Nxe3 {[%clk 0:00:21]} 37. Qxe3 {[%clk 0:00:16]}  Qa1+ {[%clk 0:00:22]} 38. Kg2 {[%clk 0:00:15]}  Qxb2 {[%clk 0:00:22]} 39. d7 {[%clk 0:00:14]}  Kf7 {[%clk 0:00:14]} 40. Qe8+ {[%clk 0:00:14]}  Kf6 {[%clk 0:00:13]} 41. d8=Q# {[%clk 0:00:14]} 1-0


[Site "https://www.chess.com"]

[Event "Titled Tuesday Blitz June 27 Late 2023"]
[White "Petersson, Kjell"]
[Black "Delorme, Axel"]
[WhiteFideId "1705148"]
[BlackFideId "632023"]
[WhiteElo "2123"]
[BlackElo "2553"]
[Result "0-1"]
[Round "1"]
[TimeControl "180+2"]
[Date "2023.06.27"]
[WhiteClock "0:00:15"]
[BlackClock "0:00:11"]
[Board "172"]

1. d4 {[%clk 0:03:00]}  d5 {[%clk 0:02:59]} 2. Bf4 {[%clk 0:03:00]}  e6 {[%clk 0:02:59]} 3. e3 {[%clk 0:03:01]}  c5 {[%clk 0:03:00]} 4. c3 {[%clk 0:03:00]}  Nc6 {[%clk 0:03:01]} 5. Nd2 {[%clk 0:03:00]}  Nf6 {[%clk 0:03:01]} 6. Ngf3 {[%clk 0:02:59]}  Nh5 {[%clk 0:03:01]} 7. Bg5 {[%clk 0:02:56]}  f6 {[%clk 0:03:01]} 8. Bh4 {[%clk 0:02:56]}  cxd4 {[%clk 0:03:01]} 9. cxd4 {[%clk 0:02:48]}  Be7 {[%clk 0:02:53]} 10. g4 {[%clk 0:02:44]}  g5 {[%clk 0:02:51]} 11. gxh5 {[%clk 0:02:26]}  gxh4 {[%clk 0:02:50]} 12. Nxh4 {[%clk 0:02:20]}  Qb6 {[%clk 0:02:42]} 13. h6 {[%clk 0:02:12]}  Qxb2 {[%clk 0:02:39]} 14. Qh5+ {[%clk 0:02:11]}  Kd8 {[%clk 0:02:33]} 15. Rb1 {[%clk 0:02:11]}  Qxa2 {[%clk 0:02:31]} 16. Qf7 {[%clk 0:01:40]}  Kc7 {[%clk 0:02:18]} 17. Bb5 {[%clk 0:01:34]}  Qa3 {[%clk 0:01:54]} 18. Qg7 {[%clk 0:01:23]}  Bd7 {[%clk 0:01:52]} 19. Rb3 {[%clk 0:01:07]}  Qc1+ {[%clk 0:01:07]} 20. Ke2 {[%clk 0:01:04]}  Qxh1 {[%clk 0:01:08]} 21. Bxc6 {[%clk 0:01:01]}  bxc6 {[%clk 0:01:03]} 22. Qxe7 {[%clk 0:01:01]}  Rab8 {[%clk 0:00:43]} 23. Nhf3 {[%clk 0:00:53]}  Qc1 {[%clk 0:00:28]} 24. Ra3 {[%clk 0:00:32]}  Rb7 {[%clk 0:00:24]} 25. Qxf6 {[%clk 0:00:30]}  Qxa3 {[%clk 0:00:18]} 26. Qxh8 {[%clk 0:00:29]}  c5 {[%clk 0:00:14]} 27. Qe5+ {[%clk 0:00:29]}  Kc8 {[%clk 0:00:14]} 28. dxc5 {[%clk 0:00:28]}  Bb5+ {[%clk 0:00:13]} 29. Nc4 {[%clk 0:00:19]}  Bxc4+ {[%clk 0:00:12]} 30. Kd2 {[%clk 0:00:18]}  Qb2+ {[%clk 0:00:11]} 31. Qxb2 {[%clk 0:00:18]}  Rxb2+ {[%clk 0:00:12]} 32. Kc3 {[%clk 0:00:18]}  Rxf2 {[%clk 0:00:12]} 33. Ne5 {[%clk 0:00:18]}  Rxh2 {[%clk 0:00:11]} 34. Kd4 {[%clk 0:00:15]}  Rxh6 {[%clk 0:00:11]} 0-1


[Site "https://www.chess.com"]

[Event "Titled Tuesday Blitz June 27 Late 2023"]
[White "Bjelobrk, Igor"]
[Black "Ricaurte Lopez, Juan Carlos"]
[WhiteFideId "4300726"]
[BlackFideId "3600327"]
[WhiteElo "2552"]
[BlackElo "2108"]
[Result "1-0"]
[Round "1"]
[TimeControl "180+2"]
[Date "2023.06.27"]
[WhiteClock "0:00:58"]
[BlackClock "0:00:00"]
[Board "173"]

1. d4 {[%clk 0:03:00]}  Nf6 {[%clk 0:02:50]} 2. c4 {[%clk 0:02:59]}  e6 {[%clk 0:02:48]} 3. g3 {[%clk 0:03:00]}  c5 {[%clk 0:02:45]} 4. d5 {[%clk 0:02:59]}  exd5 {[%clk 0:02:42]} 5. cxd5 {[%clk 0:02:59]}  d6 {[%clk 0:02:36]} 6. Nc3 {[%clk 0:02:57]}  g6 {[%clk 0:02:32]} 7. Bg2 {[%clk 0:02:57]}  Bg7 {[%clk 0:02:32]} 8. Nf3 {[%clk 0:02:56]}  O-O {[%clk 0:02:29]} 9. O-O {[%clk 0:02:56]}  Re8 {[%clk 0:02:27]} 10. Re1 {[%clk 0:02:52]}  Bg4 {[%clk 0:02:19]} 11. h3 {[%clk 0:02:44]}  Bxf3 {[%clk 0:02:18]} 12. exf3 {[%clk 0:02:42]}  Rxe1+ {[%clk 0:02:13]} 13. Qxe1 {[%clk 0:02:43]}  Na6 {[%clk 0:02:07]} 14. f4 {[%clk 0:02:40]}  Nb4 {[%clk 0:02:05]} 15. Qd1 {[%clk 0:02:39]}  Qd7 {[%clk 0:01:56]} 16. a3 {[%clk 0:02:39]}  Na6 {[%clk 0:01:54]} 17. Be3 {[%clk 0:02:38]}  b5 {[%clk 0:01:53]} 18. Bf1 {[%clk 0:02:36]}  Nc7 {[%clk 0:01:39]} 19. b4 {[%clk 0:02:31]}  c4 {[%clk 0:01:07]} 20. Rb1 {[%clk 0:02:05]}  a6 {[%clk 0:01:02]} 21. Bg2 {[%clk 0:02:01]}  Rb8 {[%clk 0:00:55]} 22. Rc1 {[%clk 0:01:57]}  Re8 {[%clk 0:00:31]} 23. g4 {[%clk 0:01:41]}  h5 {[%clk 0:00:28]} 24. Bf3 {[%clk 0:01:38]}  hxg4 {[%clk 0:00:26]} 25. hxg4 {[%clk 0:01:38]}  Nh7 {[%clk 0:00:18]} 26. Kg2 {[%clk 0:01:35]}  f5 {[%clk 0:00:14]} 27. g5 {[%clk 0:01:35]}  Qe7 {[%clk 0:00:10]} 28. Ne2 {[%clk 0:01:33]}  Rf8 {[%clk 0:00:04]} 29. Nd4 {[%clk 0:01:33]}  Nxg5 {[%clk 0:00:03]} 30. fxg5 {[%clk 0:01:29]}  f4 {[%clk 0:00:03]} 31. Bxf4 {[%clk 0:00:58]}  Rxf4 {[%clk 0:00:00]} 32. Ne2 {[%clk 0:00:58]} 1-0


[Site "https://www.chess.com"]

[Event "Titled Tuesday Blitz June 27 Late 2023"]
[White "ElDivis"]
[Black "Ishowmoves57"]
[WhiteElo "2551"]
[BlackElo "2100"]
[Result "1-0"]
[Round "1"]
[TimeControl "180+2"]
[Date "2023.06.27"]
[WhiteClock "0:02:22"]
[BlackClock "0:02:05"]
[Board "175"]

1. e4 {[%clk 0:02:57]}  c5 {[%clk 0:02:57]} 2. Nc3 {[%clk 0:02:56]}  Nc6 {[%clk 0:02:57]} 3. Nf3 {[%clk 0:02:50]}  Nf6 {[%clk 0:02:57]} 4. d4 {[%clk 0:02:48]}  cxd4 {[%clk 0:02:57]} 5. Nxd4 {[%clk 0:02:48]}  e5 {[%clk 0:02:58]} 6. Ndb5 {[%clk 0:02:47]}  d6 {[%clk 0:02:57]} 7. Nd5 {[%clk 0:02:44]}  Nxd5 {[%clk 0:02:57]} 8. exd5 {[%clk 0:02:45]}  Ne7 {[%clk 0:02:57]} 9. c3 {[%clk 0:02:41]}  a6 {[%clk 0:02:42]} 10. Qa4 {[%clk 0:02:31]}  axb5 {[%clk 0:02:10]} 11. Bxb5+ {[%clk 0:02:22]}  Bd7 {[%clk 0:02:06]} 12. Bxd7+ {[%clk 0:02:22]}  Qxd7 {[%clk 0:02:05]} 13. Qxa8+ {[%clk 0:02:22]} 1-0


[Site "https://www.chess.com"]

[Event "Titled Tuesday Blitz June 27 Late 2023"]
[White "Sloan, Julia Elizabeth"]
[Black "Bayramov, Zaur"]
[WhiteFideId "2018950"]
[BlackFideId "13405080"]
[WhiteElo "2098"]
[BlackElo "2550"]
[Result "0-1"]
[Round "1"]
[TimeControl "180+2"]
[Date "2023.06.27"]
[WhiteClock "0:01:09"]
[BlackClock "0:01:00"]
[Board "176"]

1. d4 {[%clk 0:02:59]}  Nf6 {[%clk 0:02:57]} 2. c4 {[%clk 0:02:58]}  e6 {[%clk 0:02:57]} 3. Nf3 {[%clk 0:02:58]}  Bb4+ {[%clk 0:02:53]} 4. Bd2 {[%clk 0:02:57]}  Bxd2+ {[%clk 0:02:52]} 5. Qxd2 {[%clk 0:02:57]}  d5 {[%clk 0:02:51]} 6. Nc3 {[%clk 0:02:55]}  O-O {[%clk 0:02:50]} 7. e3 {[%clk 0:02:53]}  b6 {[%clk 0:02:49]} 8. Ne5 {[%clk 0:02:52]}  Bb7 {[%clk 0:02:49]} 9. cxd5 {[%clk 0:02:50]}  exd5 {[%clk 0:02:45]} 10. Bd3 {[%clk 0:02:47]}  Nbd7 {[%clk 0:02:43]} 11. Nxd7 {[%clk 0:02:46]}  Qxd7 {[%clk 0:02:42]} 12. O-O {[%clk 0:02:46]}  c5 {[%clk 0:02:42]} 13. dxc5 {[%clk 0:02:44]}  bxc5 {[%clk 0:02:41]} 14. Rad1 {[%clk 0:02:44]}  Rad8 {[%clk 0:02:35]} 15. Qc2 {[%clk 0:02:38]}  Qg4 {[%clk 0:02:30]} 16. f3 {[%clk 0:02:37]}  Qg5 {[%clk 0:02:27]} 17. Qf2 {[%clk 0:02:33]}  Rfe8 {[%clk 0:02:24]} 18. Bb5 {[%clk 0:02:30]}  Re7 {[%clk 0:02:19]} 19. h3 {[%clk 0:02:25]}  Qxe3 {[%clk 0:02:16]} 20. Qxe3 {[%clk 0:02:23]}  Rxe3 {[%clk 0:02:17]} 21. Kf2 {[%clk 0:02:22]}  Re6 {[%clk 0:02:14]} 22. g4 {[%clk 0:02:18]}  g5 {[%clk 0:01:56]} 23. Bd3 {[%clk 0:02:13]}  Rde8 {[%clk 0:01:43]} 24. Bf5 {[%clk 0:02:13]}  Re5 {[%clk 0:01:42]} 25. Rfe1 {[%clk 0:02:11]}  d4 {[%clk 0:01:40]} 26. Rxe5 {[%clk 0:02:07]}  Rxe5 {[%clk 0:01:39]} 27. Na4 {[%clk 0:02:05]}  Bc6 {[%clk 0:01:37]} 28. b3 {[%clk 0:02:05]}  Bxa4 {[%clk 0:01:27]} 29. bxa4 {[%clk 0:02:03]}  Nd5 {[%clk 0:01:28]} 30. Be4 {[%clk 0:02:01]}  Nc3 {[%clk 0:01:27]} 31. Rc1 {[%clk 0:02:01]}  Nxa2 {[%clk 0:01:24]} 32. Rc4 {[%clk 0:01:59]}  Nc3 {[%clk 0:01:22]} 33. Bd3 {[%clk 0:01:55]}  a5 {[%clk 0:01:21]} 34. Bf5 {[%clk 0:01:50]}  h6 {[%clk 0:01:21]} 35. Kf1 {[%clk 0:01:28]}  Kf8 {[%clk 0:01:20]} 36. Kf2 {[%clk 0:01:25]}  Ke7 {[%clk 0:01:20]} 37. Kg3 {[%clk 0:01:22]}  Kd6 {[%clk 0:01:20]} 38. h4 {[%clk 0:01:21]}  f6 {[%clk 0:01:19]} 39. hxg5 {[%clk 0:01:20]}  hxg5 {[%clk 0:01:20]} 40. Be4 {[%clk 0:01:16]}  Re8 {[%clk 0:01:11]} 41. Bd3 {[%clk 0:01:16]}  Re3 {[%clk 0:01:02]} 42. Bf5 {[%clk 0:01:15]}  Kd5 {[%clk 0:01:01]} 43. Rxc3 {[%clk 0:01:09]}  dxc3 {[%clk 0:01:00]} 0-1


[Site "https://www.chess.com"]

[Event "Titled Tuesday Blitz June 27 Late 2023"]
[White "Torres Dominguez, David"]
[Black "Berezin, Viktor"]
[WhiteFideId "2220857"]
[BlackFideId "14107872"]
[WhiteElo "2094"]
[BlackElo "2548"]
[Result "1-0"]
[Round "1"]
[TimeControl "180+2"]
[Date "2023.06.27"]
[WhiteClock "0:00:12"]
[BlackClock "0:00:11"]
[Board "178"]

1. e4 {[%clk 0:02:59]}  g6 {[%clk 0:02:59]} 2. Nc3 {[%clk 0:02:58]}  Bg7 {[%clk 0:02:58]} 3. d4 {[%clk 0:02:58]}  d6 {[%clk 0:02:58]} 4. Bf4 {[%clk 0:02:59]}  Nf6 {[%clk 0:02:58]} 5. Qd2 {[%clk 0:02:59]}  c6 {[%clk 0:02:58]} 6. Bh6 {[%clk 0:02:58]}  O-O {[%clk 0:02:58]} 7. O-O-O {[%clk 0:02:56]}  b5 {[%clk 0:02:57]} 8. f3 {[%clk 0:02:51]}  Qa5 {[%clk 0:02:56]} 9. Kb1 {[%clk 0:02:47]}  Nbd7 {[%clk 0:02:55]} 10. h4 {[%clk 0:02:46]}  b4 {[%clk 0:02:55]} 11. Nce2 {[%clk 0:02:33]}  Nb6 {[%clk 0:02:54]} 12. Nc1 {[%clk 0:02:32]}  Na4 {[%clk 0:02:45]} 13. Nb3 {[%clk 0:02:23]}  Qh5 {[%clk 0:02:24]} 14. Bxg7 {[%clk 0:02:20]}  Kxg7 {[%clk 0:02:25]} 15. g4 {[%clk 0:02:19]}  Nxg4 {[%clk 0:02:25]} 16. fxg4 {[%clk 0:02:12]}  Bxg4 {[%clk 0:02:26]} 17. Be2 {[%clk 0:02:06]}  a5 {[%clk 0:02:24]} 18. Bxg4 {[%clk 0:02:02]}  Qxg4 {[%clk 0:02:25]} 19. Qe2 {[%clk 0:02:01]}  Qxe2 {[%clk 0:02:21]} 20. Nxe2 {[%clk 0:02:02]}  Nb6 {[%clk 0:02:21]} 21. Nd2 {[%clk 0:01:59]}  h5 {[%clk 0:02:21]} 22. Rhg1 {[%clk 0:01:55]}  a4 {[%clk 0:02:20]} 23. Nf4 {[%clk 0:01:51]}  Kh7 {[%clk 0:02:20]} 24. Nf3 {[%clk 0:01:47]}  Nc4 {[%clk 0:02:17]} 25. Ng5+ {[%clk 0:01:46]}  Kh6 {[%clk 0:02:17]} 26. Rg3 {[%clk 0:01:37]}  Rab8 {[%clk 0:01:58]} 27. Re1 {[%clk 0:01:34]}  e5 {[%clk 0:01:56]} 28. dxe5 {[%clk 0:01:27]}  dxe5 {[%clk 0:01:57]} 29. Nd3 {[%clk 0:01:27]}  b3 {[%clk 0:01:55]} 30. cxb3 {[%clk 0:01:24]}  axb3 {[%clk 0:01:55]} 31. a3 {[%clk 0:01:24]}  Rbd8 {[%clk 0:01:47]} 32. Rc1 {[%clk 0:01:20]}  Nd2+ {[%clk 0:01:41]} 33. Ka1 {[%clk 0:01:19]}  Rd6 {[%clk 0:01:24]} 34. Nxe5 {[%clk 0:01:18]}  Kg7 {[%clk 0:01:21]} 35. Ngf3 {[%clk 0:00:44]}  Nxe4 {[%clk 0:01:19]} 36. Rg2 {[%clk 0:00:43]}  c5 {[%clk 0:01:17]} 37. Nc4 {[%clk 0:00:43]}  Rd5 {[%clk 0:01:12]} 38. Na5 {[%clk 0:00:36]}  Rb8 {[%clk 0:01:08]} 39. Re2 {[%clk 0:00:34]}  f5 {[%clk 0:01:06]} 40. Ng5 {[%clk 0:00:27]}  Nxg5 {[%clk 0:00:29]} 41. hxg5 {[%clk 0:00:28]}  Kf7 {[%clk 0:00:30]} 42. Rce1 {[%clk 0:00:23]}  Rd7 {[%clk 0:00:29]} 43. Nc6 {[%clk 0:00:22]}  Rbd8 {[%clk 0:00:24]} 44. Ne5+ {[%clk 0:00:23]}  Kf8 {[%clk 0:00:25]} 45. Nxd7+ {[%clk 0:00:23]}  Rxd7 {[%clk 0:00:26]} 46. Re3 {[%clk 0:00:22]}  c4 {[%clk 0:00:25]} 47. Rc3 {[%clk 0:00:22]}  Rd4 {[%clk 0:00:25]} 48. a4 {[%clk 0:00:19]}  h4 {[%clk 0:00:25]} 49. a5 {[%clk 0:00:18]}  Rd5 {[%clk 0:00:25]} 50. a6 {[%clk 0:00:15]}  Ra5+ {[%clk 0:00:24]} 51. Kb1 {[%clk 0:00:16]}  Rxa6 {[%clk 0:00:25]} 52. Rxc4 {[%clk 0:00:16]}  h3 {[%clk 0:00:22]} 53. Rh4 {[%clk 0:00:16]}  Kf7 {[%clk 0:00:17]} 54. Rh7+ {[%clk 0:00:15]}  Kg8 {[%clk 0:00:16]} 55. Rb7 {[%clk 0:00:13]}  Ra4 {[%clk 0:00:11]} 56. Re8# {[%clk 0:00:12]} 1-0


[Site "https://www.chess.com"]

[Event "Titled Tuesday Blitz June 27 Late 2023"]
[White "Ljukin, Sergei"]
[Black "Winkels, Marcel"]
[WhiteFideId "14102200"]
[BlackFideId "1003887"]
[WhiteElo "2546"]
[BlackElo "2093"]
[Result "1-0"]
[Round "1"]
[TimeControl "180+2"]
[Date "2023.06.27"]
[WhiteClock "0:01:54"]
[BlackClock "0:00:00"]
[Board "179"]

1. e4 {[%clk 0:03:00]}  c5 {[%clk 0:02:59]} 2. Nf3 {[%clk 0:03:00]}  d6 {[%clk 0:03:00]} 3. d4 {[%clk 0:03:01]}  cxd4 {[%clk 0:03:01]} 4. Nxd4 {[%clk 0:03:01]}  Nf6 {[%clk 0:03:01]} 5. Nc3 {[%clk 0:03:01]}  a6 {[%clk 0:03:01]} 6. Bg5 {[%clk 0:03:01]}  e6 {[%clk 0:03:01]} 7. f4 {[%clk 0:03:01]}  Be7 {[%clk 0:03:01]} 8. Qf3 {[%clk 0:03:01]}  Qc7 {[%clk 0:03:00]} 9. O-O-O {[%clk 0:03:01]}  Nbd7 {[%clk 0:03:00]} 10. g4 {[%clk 0:03:01]}  h6 {[%clk 0:03:00]} 11. Bxf6 {[%clk 0:03:01]}  Bxf6 {[%clk 0:03:00]} 12. h4 {[%clk 0:03:00]}  Nb6 {[%clk 0:02:56]} 13. g5 {[%clk 0:02:58]}  Bxd4 {[%clk 0:02:55]} 14. Rxd4 {[%clk 0:02:57]}  Qc5 {[%clk 0:02:53]} 15. Rd2 {[%clk 0:02:40]}  Bd7 {[%clk 0:02:48]} 16. Qd3 {[%clk 0:02:39]}  hxg5 {[%clk 0:01:00]} 17. fxg5 {[%clk 0:02:38]}  O-O-O {[%clk 0:00:37]} 18. Qxd6 {[%clk 0:02:26]}  Qxd6 {[%clk 0:00:19]} 19. Rxd6 {[%clk 0:02:26]}  Bc6 {[%clk 0:00:20]} 20. Rxd8+ {[%clk 0:02:26]}  Kxd8 {[%clk 0:00:17]} 21. Be2 {[%clk 0:02:22]}  Ke7 {[%clk 0:00:16]} 22. h5 {[%clk 0:02:16]}  Nd7 {[%clk 0:00:15]} 23. a4 {[%clk 0:02:13]}  Ne5 {[%clk 0:00:13]} 24. b4 {[%clk 0:02:12]}  Bd7 {[%clk 0:00:09]} 25. Kb2 {[%clk 0:02:07]}  Rc8 {[%clk 0:00:07]} 26. Kb3 {[%clk 0:02:04]}  Rd8 {[%clk 0:00:03]} 27. Rd1 {[%clk 0:01:58]}  Rh8 {[%clk 0:00:02]} 28. a5 {[%clk 0:01:57]}  Be8 {[%clk 0:00:00]} 29. Na4 {[%clk 0:01:54]} 1-0


[Site "https://www.chess.com"]